lending/lending_fUSD_20240507
["ID","MTS","AMOUNT","RATE_DAILY","PERIOD"]
[326543210,1715100677893,-500.0,0.00024657,2]
[326543212,1715100677904,-466.01812239,0.00024657,2]
[326543213,1715100677926,-503.67271671,0.00024657,2]
[326543215,1715100677939,-623.94,0.00024657,2]
[326543217,1715100677956,-500.0,0.00024657,2]
[326543218,1715100677969,-740.2,0.00024657,2]
[326543219,1715100677999,-500.0,0.00024657,2]
[326543220,1715100678027,-519.11549017,0.00024657,2]
[326543221,1715100678040,-500.0,0.00024657,2]
[326543222,1715100678072,-500.0,0.00024657,2]
[326543224,1715100678085,-649.43,0.00024657,2]
[326543226,1715100678096,-1098.64,0.00024657,2]
[326543230,1715100678125,-500.0,0.00024657,2]
[326543231,1715100678139,-500.0,0.00024657,2]
[326543232,1715100678151,-500.0,0.00024657,2]
[326543235,1715100678165,-725.44,0.00024657,2]
[326543237,1715100678178,-580.17,0.00024657,2]
[326543239,1715100678193,-500.0,0.00024657,2]
[326543242,1715100678218,-876.37,0.00024657,2]
[326543243,1715100678229,-500.0,0.00024657,2]
[326543244,1715100678240,-547.6,0.00024657,2]
[326543247,1715100678314,-1047.34,0.00024657,2]
[326543249,1715100678325,-500.0,0.00024657,2]
[326543250,1715100678338,-500.0,0.00024657,2]
[326543252,1715100678356,-502.65118042,0.00024657,2]
[326543254,1715100678367,-858.69,0.00024657,2]
[326543256,1715100678378,-535.12,0.00024657,2]
[326543258,1715100678400,-500.0,0.00024657,2]
[326543259,1715100678414,-500.0,0.00024657,2]
[326543261,1715100678433,-500.0,0.00024657,2]
[326543262,1715100678445,-512.3516,0.00024657,2]
[326543264,1715100678459,-500.93,0.00024657,2]
[326543265,1715100678476,-500.0,0.00024657,2]
[326543267,1715100678505,-500.0,0.00024657,2]
[326543270,1715100678528,-500.0,0.00024657,2]
[326543272,1715100678539,-500.0,0.00024657,2]
[326543274,1715100678550,-500.0,0.00024657,2]
[326543276,1715100678561,-500.0,0.00024657,2]
[326543277,1715100678583,-500.0,0.00024657,2]
[326543281,1715100678615,-993.71,0.00024657,2]
[326543283,1715100678626,-500.0,0.00024657,2]
[326543284,1715100678638,-1112.29,0.00024657,2]
[326543288,1715100678670,-500.0,0.00024657,2]
[326543290,1715100678682,-500.0,0.00024657,2]
[326543291,1715100678693,-511.92919389,0.00024657,2]
[326543292,1715100678708,-608.9,0.00024657,2]
[326543294,1715100678720,-744.3,0.00024657,2]
[326543296,1715100678731,-769.36,0.00024657,2]
[326543297,1715100678750,-1288.3,0.00024657,2]
[326543299,1715100678762,-500.0,0.00024657,2]
[326543300,1715100678776,-500.0,0.00024657,2]
[326543302,1715100678789,-500.0,0.00024657,2]
[326543304,1715100678807,-508.61262414,0.00024657,2]
[326543305,1715100678819,-1986.0,0.00024657,2]
[326543306,1715100678832,-514.21700768,0.00024657,2]
[326543308,1715100678847,-500.0,0.00024657,2]
[326543310,1715100678859,-506.61038112,0.00024657,2]
[326543312,1715100678873,-500.0,0.00024657,2]
[326543315,1715100678903,-1221.93,0.00024657,2]
[326543316,1715100678914,-684.76,0.00024657,2]
[326543318,1715100678927,-500.0,0.00024657,2]
[326543321,1715100678946,-872.23,0.00024657,2]
[326543323,1715100678959,-500.0,0.00024657,2]
[326543325,1715100678970,-509.33,0.00024657,2]
[326543327,1715100678993,-500.0,0.00024657,2]
[326543330,1715100679008,-1149.17,0.00024657,2]
[326543333,1715100679039,-507.35560478,0.00024657,2]
[326543334,1715100679057,-500.0,0.00024657,2]
[326543335,1715100679072,-500.0,0.00024657,2]
[326543337,1715100679083,-500.0,0.00024657,2]
[326543339,1715100679094,-500.0,0.00024657,2]
[326543341,1715100679107,-500.0,0.00024657,2]
[326543342,1715100679122,-706.36,0.00024657,2]
[326543345,1715100679167,-868.22,0.00024657,2]
[326543347,1715100679179,-529.99941351,0.00024657,2]
[326543349,1715100679195,-500.0,0.00024657,2]
[326543351,1715100679207,-544.17,0.00024657,2]
[326543353,1715100679224,-515.33,0.00024657,2]
[326543355,1715100679235,-500.0,0.00024657,2]
[326543358,1715100679260,-500.0,0.00024657,2]
[326543360,1715100679271,-500.0,0.00024657,2]
[326543362,1715100679287,-1022.91,0.00024657,2]
[326543364,1715100679298,-500.0,0.00024657,2]
[326543366,1715100679309,-500.0,0.00024657,2]
[326543368,1715100679354,-881.3,0.00024657,2]
[326543369,1715100679365,-500.0,0.00024657,2]
[326543371,1715100679380,-339.25060101,0.00024657,2]
[326543373,1715100679390,-151.0,0.00024657,7]
[326543375,1715100679412,-151.0,0.00024657,7]
[326543377,1715100679423,-151.0,0.00024657,7]
[326543379,1715100679440,-500.0,0.00024657,2]
[326543381,1715100679452,-500.0,0.00024657,2]
[326543382,1715100679463,-500.0,0.00024657,2]
[326543384,1715100679474,-500.0,0.00024657,2]
[326543385,1715100679488,-669.34,0.00024657,2]
[326543386,1715100679512,-541.81,0.00024657,2]
[326543388,1715100679525,-522.4,0.00024657,2]
[326543391,1715100679552,-444.76413476,0.00024657,2]
[326543393,1715100679564,-500.0,0.00024657,2]
[326543395,1715100679587,-600.9230821,0.00024657,2]
[326543396,1715100679600,-500.0,0.00024657,2]
[326543399,1715100679624,-500.0,0.00024657,2]
[326543400,1715100679646,-1030.69,0.00024657,2]
[326543401,1715100679661,-500.0,0.00024657,2]
[326543403,1715100679681,-500.0,0.00024657,2]
[326543405,1715100679700,-500.0,0.00024657,2]
[326543407,1715100679719,-500.0,0.00024657,2]
[326543409,1715100679731,-500.0,0.00024657,2]
[326543411,1715100679746,-1512.55,0.00024657,2]
[326543413,1715100679758,-500.0,0.00024657,2]
[326543414,1715100679789,-500.0,0.00024657,2]
[326543415,1715100679803,-500.0,0.00024657,2]
[326543416,1715100679816,-505.16934135,0.00024657,2]
[326543418,1715100679827,-887.83,0.00024657,2]
[326543421,1715100679840,-500.0,0.00024657,2]
[326543423,1715100679853,-976.56,0.00024657,2]
[326543426,1715100679877,-738.65,0.00024657,2]
[326543429,1715100679915,-500.0,0.00024657,2]
[326543431,1715100679926,-500.0,0.00024657,2]
[326543434,1715100679968,-793.34,0.00024657,2]
[326543436,1715100679980,-836.74,0.00024657,2]
[326543438,1715100679992,-500.0,0.00024657,2]
[326543440,1715100680008,-1470.0,0.00024657,2]
[326543442,1715100680033,-507.84428848,0.00024657,2]
[326543445,1715100680073,-500.0,0.00024657,2]
[326543447,1715100680084,-500.0,0.00024657,2]
[326543448,1715100680096,-500.0,0.00024657,2]
[326543451,1715100680118,-500.0,0.00024657,2]
[326543453,1715100680130,-500.0,0.00024657,2]
[326543455,1715100680148,-878.28,0.00024657,2]
[326543456,1715100680159,-566.05,0.00024657,2]
[326543457,1715100680171,-1145.58,0.00024657,2]
[326543458,1715100680199,-210.46446041,0.00024657,2]
[326543460,1715100680219,-500.0,0.00024657,2]
[326543461,1715100680231,-500.0,0.00024657,2]
[326543463,1715100680246,-200.0,0.00024657,2]
[326543465,1715100680270,-505.63672381,0.00024657,2]
[326543467,1715100680283,-1024.21,0.00024657,2]
[326543469,1715100680296,-150.0,0.00024657,2]
[326543471,1715100680312,-599.99382777,0.00024657,2]
[326543474,1715100680325,-500.0,0.00024657,2]
[326543477,1715100680401,-500.0,0.00024657,2]
[326543479,1715100680421,-547.15187868,0.00024657,2]
[326543481,1715100680432,-500.0,0.00024657,2]
[326543483,1715100680452,-504.82344055,0.00024657,2]
[326543485,1715100680469,-500.0,0.00024657,2]
[326543489,1715100680513,-505.17715843,0.00024657,2]
[326543490,1715100680540,-500.0,0.00024657,2]
[326543492,1715100680551,-514.06,0.00024657,2]
[326543493,1715100680563,-834.76,0.00024657,2]
[326543496,1715100680583,-567.29,0.00024657,2]
[326543498,1715100680600,-500.0,0.00024657,2]
[326543500,1715100680611,-500.0,0.00024657,2]
[326543502,1715100680624,-1224.36,0.00024657,2]
[326543504,1715100680636,-1683.57,0.00024657,2]
[326543506,1715100680647,-1276.79,0.00024657,2]
[326543508,1715100680657,-500.0,0.00024657,2]
[326543510,1715100680668,-500.0,0.00024657,2]
[326543511,1715100680690,-762.3,0.00024657,2]
[326543512,1715100680701,-567.7263053,0.00024657,2]
[326543514,1715100680712,-631.69,0.00024657,2]
[326543516,1715100680728,-500.0,0.00024657,2]
[326543519,1715100680759,-670.04,0.00024657,2]
[326543520,1715100680772,-626.1772734,0.00024657,2]
[326543521,1715100680782,-500.0,0.00024657,2]
[326543522,1715100680793,-514.59091062,0.00024657,2]
[326543524,1715100680805,-475.99432595,0.00024657,2]
[326543526,1715100680823,-1243.9,0.00024657,2]
[326543528,1715100680836,-506.47621646,0.00024657,2]
[326543530,1715100680847,-546.45,0.00024657,2]
[326543532,1715100680861,-500.0,0.00024657,2]
[326543533,1715100680872,-1076.02,0.00024657,2]
[326543534,1715100680883,-500.0,0.00024657,2]
[326543535,1715100680897,-500.0,0.00024657,2]
[326543539,1715100680929,-500.0,0.00024657,2]
[326543541,1715100680940,-544.47,0.00024657,2]
[326543543,1715100680962,-533.9,0.00024657,2]
[326543546,1715100680998,-626.99,0.00024657,2]
[326543548,1715100681010,-500.0,0.00024657,2]
[326543550,1715100681021,-500.0,0.00024657,2]
[326543551,1715100681053,-508.03108043,0.00024657,2]
[326543554,1715100681069,-509.15327084,0.00024657,2]
[326543556,1715100681091,-500.0,0.00024657,2]
[326543558,1715100681110,-500.0,0.00024657,2]
[326543560,1715100681127,-500.0,0.00024657,2]
[326543563,1715100681139,-500.0,0.00024657,2]
[326543564,1715100681150,-1341.31,0.00024657,2]
[326543565,1715100681161,-2176.29,0.00024657,2]
[326543566,1715100681172,-500.0,0.00024657,2]
[326543568,1715100681186,-500.0,0.00024657,2]
[326543573,1715100681225,-500.0,0.00024657,2]
[326543588,1715100681481,-500.0,0.00024657,2]
[326543590,1715100681494,-500.05248621,0.00024657,2]
[326543593,1715100681519,-509.64384088,0.00024657,2]
[326543595,1715100681549,-500.0,0.00024657,2]
[326543597,1715100681559,-184.07648724,0.00024657,2]
[326543599,1715100681570,-554.34,0.00024657,2]
[326543601,1715100681582,-500.0,0.00024657,2]
[326543603,1715100681593,-500.0,0.00024657,2]
[326543604,1715100681604,-500.0,0.00024657,2]
[326543606,1715100681639,-500.0,0.00024657,2]
[326543608,1715100681652,-466.09158947,0.00024657,2]
[326543614,1715100681696,-422.61391067,0.00024657,2]
[326543615,1715100681718,-359.0919884,0.00024657,2]
[326543617,1715100681750,-500.0,0.00024657,2]
[326543618,1715100681760,-500.0,0.00024657,2]
[326543619,1715100681770,-505.35071012,0.00024657,2]
[326543621,1715100681781,-500.0,0.00024657,2]
[326543623,1715100681792,-500.0,0.00024657,2]
[326543625,1715100681803,-546.02,0.00024657,2]
[326543627,1715100681813,-500.0,0.00024657,2]
[326543629,1715100681828,-500.0,0.00024657,2]
[326543630,1715100681838,-500.0,0.00024657,2]
[326543632,1715100681849,-1376.62,0.00024657,2]
[326543634,1715100681864,-1009.08,0.00024657,2]
[326543636,1715100681875,-1277.62,0.00024657,2]
[326543637,1715100681887,-500.0,0.00024657,2]
[326543639,1715100681897,-504.45470931,0.00024657,2]
[326543642,1715100681920,-577.26,0.00024657,2]
[326543644,1715100681931,-500.0,0.00024657,2]
[326543645,1715100681943,-816.74,0.00024657,2]
[326543647,1715100681953,-788.2,0.00024657,2]
[326543649,1715100681965,-621.35,0.00024657,2]
[326543650,1715100681977,-500.0,0.00024657,2]
[326543652,1715100681993,-500.0,0.00024657,2]
[326543654,1715100682006,-662.26,0.00024657,2]
[326543656,1715100682019,-151.0,0.00024657,7]
[326543658,1715100682044,-151.0,0.00024657,7]
[326543659,1715100682077,-151.0,0.00024657,7]
[326543661,1715100682088,-500.0,0.00024657,2]
[326543663,1715100682099,-500.0,0.00024657,2]
[326543665,1715100682109,-1850.96,0.00024657,2]
[326543668,1715100682124,-505.29122624,0.00024657,2]
[326543670,1715100682135,-991.16,0.00024657,2]
[326543672,1715100682160,-500.0,0.00024657,2]
[326543674,1715100682171,-1082.39,0.00024657,2]
[326543676,1715100682182,-500.0,0.00024657,2]
[326543678,1715100682195,-500.0,0.00024657,2]
[326543679,1715100682206,-2010.91,0.00024657,2]
[326543680,1715100682218,-500.0,0.00024657,2]
[326543681,1715100682239,-504.57755166,0.00024657,2]
[326543682,1715100682257,-1069.36,0.00024657,2]
[326543683,1715100682268,-171.20084401,0.00024657,2]
[326543684,1715100682279,-500.0,0.00024657,2]
[326543685,1715100682290,-838.44,0.00024657,2]
[326543686,1715100682313,-502.96693468,0.00024657,2]
[326543687,1715100682324,-500.0,0.00024657,2]
[326543688,1715100682337,-506.79099463,0.00024657,2]
[326543689,1715100682349,-500.0,0.00024657,2]
[326543690,1715100682363,-500.0,0.00024657,2]
[326543691,1715100682378,-500.0,0.00024657,2]
[326543694,1715100682392,-1514.75,0.00024657,2]
[326543696,1715100682404,-924.94,0.00024657,2]
[326543697,1715100682419,-459.73784367,0.00024657,2]
[326543699,1715100682430,-705.28,0.00024657,2]
[326543700,1715100682442,-500.0,0.00024657,2]
[326543702,1715100682456,-500.0,0.00024657,2]
[326543704,1715100682485,-500.0,0.00024657,2]
[326543706,1715100682495,-500.0,0.00024657,2]
[326543707,1715100682507,-500.0,0.00024657,2]
[326543709,1715100682517,-606.7,0.00024657,2]
[326543711,1715100682528,-500.0,0.00024657,2]
[326543713,1715100682538,-500.0,0.00024657,2]
[326543715,1715100682550,-811.29,0.00024657,2]
[326543717,1715100682559,-500.0,0.00024657,2]
[326543718,1715100682570,-500.0,0.00024657,2]
[326543720,1715100682600,-500.0,0.00024657,2]
[326543721,1715100682610,-401.73470969,0.00024657,2]
[326543723,1715100682625,-500.0,0.00024657,2]
[326543724,1715100682636,-500.0,0.00024657,2]
[326543726,1715100682648,-1263.74,0.00024657,2]
[326543727,1715100682659,-504.9140437,0.00024657,2]
[326543728,1715100682670,-507.49043568,0.00024657,2]
[326543729,1715100682692,-511.96213689,0.00024657,2]
[326543730,1715100682704,-824.39,0.00024657,2]
[326543731,1715100682716,-500.0,0.00024657,2]
[326543732,1715100682754,-500.0,0.00024657,2]
[326543733,1715100682773,-642.22,0.00024657,2]
[326543735,1715100682796,-947.11,0.00024657,2]
[326543737,1715100682806,-500.0,0.00024657,2]
[326543739,1715100682819,-412.6245085,0.00024657,2]
[326543740,1715100682829,-500.0,0.00024657,2]
[326543744,1715100682858,-302.0937993,0.00024657,2]
[326543746,1715100682876,-944.04,0.00024657,2]
[326543748,1715100682887,-500.0,0.00024657,2]
[326543751,1715100682910,-500.0,0.00024657,2]
[326543755,1715100682982,-500.0,0.00024657,2]
[326543756,1715100682997,-500.0,0.00024657,2]
[326543757,1715100683008,-500.0,0.00024657,2]
[326543761,1715100683039,-500.0,0.00024657,2]
[326543762,1715100683051,-500.0,0.00024657,2]
[326543764,1715100683066,-500.0,0.00024657,2]
[326543765,1715100683090,-500.0,0.00024657,2]
[326543767,1715100683104,-500.0,0.00024657,2]
[326543769,1715100683121,-500.0,0.00024657,2]
[326543771,1715100683139,-500.0,0.00024657,2]
[326543773,1715100683156,-500.0,0.00024657,2]
[326543775,1715100683166,-500.0,0.00024657,2]
[326543777,1715100683177,-541.81818655,0.00024657,2]
[326543779,1715100683198,-505.73,0.00024657,2]
[326543782,1715100683218,-500.0,0.00024657,2]
[326543785,1715100683232,-500.0,0.00024657,2]
[326543787,1715100683244,-1475.4,0.00024657,2]
[326543788,1715100683254,-500.0,0.00024657,2]
[326543791,1715100683271,-500.0,0.00024657,2]
[326543793,1715100683282,-1459.59,0.00024657,2]
[326543795,1715100683293,-500.0,0.00024657,2]
[326543797,1715100683330,-500.0,0.00024657,2]
[326543799,1715100683340,-507.53884239,0.00024657,2]
[326543800,1715100683351,-500.0,0.00024657,2]
[326543801,1715100683369,-500.0,0.00024657,2]
[326543803,1715100683380,-830.45,0.00024657,2]
[326543805,1715100683390,-1137.19,0.00024657,2]
[326543807,1715100683404,-1015.07,0.00024657,2]
[326543809,1715100683420,-500.0,0.00024657,2]
[326543811,1715100683439,-500.0,0.00024657,2]
[326543812,1715100683451,-500.0,0.00024657,2]
[326543815,1715100683466,-500.0,0.00024657,2]
[326543817,1715100683480,-190.69023394,0.00024657,2]
[326543818,1715100683491,-500.0,0.00024657,2]
[326543820,1715100683501,-500.0,0.00024657,2]
[326543822,1715100683516,-500.0,0.00024657,2]
[326543823,1715100683531,-500.0,0.00024657,2]
[326543825,1715100683561,-500.0,0.00024657,2]
[326543827,1715100683573,-500.0,0.00024657,2]
[326543828,1715100683587,-500.0,0.00024657,2]
[326543830,1715100683603,-500.0,0.00024657,2]
[326543832,1715100683615,-1230.14,0.00024657,2]
[326543834,1715100683630,-500.0,0.00024657,2]
[326543836,1715100683646,-500.0,0.00024657,2]
[326543839,1715100683658,-500.0,0.00024657,2]
[326543840,1715100683674,-1091.36,0.00024657,2]
[326543841,1715100683687,-500.0,0.00024657,2]
[326543842,1715100683699,-1576.77,0.00024657,2]
[326543843,1715100683710,-500.0,0.00024657,2]
[326543844,1715100683722,-1058.72,0.00024657,2]
[326543845,1715100683749,-500.0,0.00024657,2]
[326543846,1715100683759,-2633.14,0.00024657,2]
[326543847,1715100683769,-643.72,0.00024657,2]
[326543848,1715100683782,-500.0,0.00024657,2]
[326543849,1715100683792,-500.0,0.00024657,2]
[326543850,1715100683832,-500.0,0.00024657,2]
[326543851,1715100683842,-500.0,0.00024657,2]
[326543852,1715100683853,-500.0,0.00024657,2]
[326543853,1715100683868,-500.0,0.00024657,2]
[326543854,1715100683881,-500.0,0.00024657,2]
[326543855,1715100683892,-500.0,0.00024657,2]
[326543856,1715100683905,-1113.37,0.00024657,2]
[326543857,1715100683920,-1260.71,0.00024657,2]
[326543858,1715100683932,-500.0,0.00024657,2]
[326543859,1715100683942,-500.0,0.00024657,2]
[326543860,1715100683953,-560.17,0.00024657,2]
[326543861,1715100683972,-507.05252505,0.00024657,2]
[326543862,1715100683983,-500.0,0.00024657,2]
[326543863,1715100683995,-667.85,0.00024657,2]
[326543864,1715100684010,-500.0,0.00024657,2]
[326543865,1715100684029,-1991.57,0.00024657,2]
[326543866,1715100684039,-500.0,0.00024657,2]
[326543867,1715100684061,-500.0,0.00024657,2]
[326543868,1715100684074,-500.0,0.00024657,2]
[326543869,1715100684099,-506.35762327,0.00024657,2]
[326543870,1715100684114,-500.0,0.00024657,2]
[326543871,1715100684126,-674.47,0.00024657,2]
[326543872,1715100684138,-1386.49,0.00024657,2]
[326543873,1715100684154,-500.0,0.00024657,2]
[326543874,1715100684168,-1965.84,0.00024657,2]
[326543875,1715100684182,-603.14,0.00024657,2]
[326543876,1715100684209,-1481.21,0.00024657,2]
[326543877,1715100684221,-500.0,0.00024657,2]
[326543878,1715100684232,-500.0,0.00024657,2]
[326543879,1715100684245,-1002.24,0.00024657,2]
[326543880,1715100684264,-625.95,0.00024657,2]
[326543881,1715100684306,-1881.5,0.00024657,2]
[326543882,1715100684336,-717.62,0.00024657,2]
[326543883,1715100684357,-2117.85,0.00024657,2]
[326543884,1715100684371,-500.0,0.00024657,2]
[326543885,1715100684382,-500.0,0.00024657,2]
[326543886,1715100684397,-500.0,0.00024657,2]
[326543887,1715100684421,-500.0,0.00024657,2]
[326543888,1715100684434,-500.0,0.00024657,2]
[326543889,1715100684445,-500.0,0.00024657,2]
[326543890,1715100684456,-500.0,0.00024657,2]
[326543891,1715100684470,-1195.24,0.00024657,2]
[326543892,1715100684506,-500.0,0.00024657,2]
[326543893,1715100684516,-500.0,0.00024657,2]
[326543894,1715100684529,-500.0,0.00024657,2]
[326543895,1715100684540,-500.0,0.00024657,2]
[326543896,1715100684554,-500.0,0.00024657,2]
[326543897,1715100684579,-500.0,0.00024657,2]
[326543898,1715100684590,-500.0,0.00024657,2]
[326543899,1715100684605,-647.37,0.00024657,2]
[326543900,1715100684667,-500.0,0.00024657,2]
[326543901,1715100684691,-500.0,0.00024657,2]
[326543902,1715100684703,-500.0,0.00024657,2]
[326543903,1715100684714,-500.0,0.00024657,2]
[326543904,1715100684727,-500.0,0.00024657,2]
[326543905,1715100684745,-500.0,0.00024657,2]
[326543906,1715100684757,-500.0,0.00024657,2]
[326543907,1715100684768,-500.0,0.00024657,2]
[326543908,1715100684791,-500.0,0.00024657,2]
[326543909,1715100684802,-500.0,0.00024657,2]
[326543910,1715100684814,-500.0,0.00024657,2]
[326543911,1715100684869,-631.5135979,0.00024657,2]
[326543912,1715100684880,-757.75,0.00024657,2]
[326543913,1715100684895,-9898.96818428,0.00024657,2]
[326543914,1715100684907,-1430.45,0.00024657,2]
[326543915,1715100684920,-2125.98,0.00024657,2]
[326543916,1715100684934,-500.0,0.00024657,2]
[326543917,1715100684977,-1338.2,0.00024657,2]
[326543918,1715100685000,-545.37,0.00024657,2]
[326543919,1715100685014,-500.0,0.00024657,2]
[326543920,1715100685028,-500.0,0.00024657,2]
[326543921,1715100685045,-229.624516,0.00024657,7]
[326543922,1715100685058,-357.43661139,0.00024657,2]
[326543923,1715100685082,-500.0,0.00024657,2]
[326543924,1715100685116,-500.0,0.00024657,2]
[326543925,1715100685127,-528.73385367,0.00024657,2]
[326543926,1715100685163,-500.0,0.00024657,2]
[326543927,1715100685177,-948.97,0.00024657,2]
[326543928,1715100685193,-500.0,0.00024657,2]
[326543929,1715100685205,-500.0,0.00024657,2]
[326543930,1715100685216,-500.0,0.00024657,2]
[326543931,1715100685228,-1415.95,0.00024657,2]
[326543932,1715100685245,-1125.88,0.00024657,2]
[326543933,1715100685256,-500.0,0.00024657,2]
[326543934,1715100685269,-1056.22,0.00024657,2]
[326543935,1715100685285,-500.0,0.00024657,2]
[326543936,1715100685372,-1276.0,0.00024657,2]
[326543937,1715100685383,-617.50576766,0.00024657,2]
[326543938,1715100685394,-151.0,0.00024657,7]
[326543939,1715100685404,-500.0,0.00024657,2]
[326543940,1715100685416,-151.0,0.00024657,7]
[326543941,1715100685427,-942.21,0.00024657,2]
[326543942,1715100685440,-507.21218475,0.00024657,2]
[326543943,1715100685452,-500.61715258,0.00024657,2]
[326543944,1715100685463,-411.89154422,0.00024657,2]
[326543945,1715100685478,-500.0,0.00024657,2]
[326543946,1715100685492,-489.89352128,0.00024657,2]
[326543947,1715100685502,-500.0,0.00024657,2]
[326543948,1715100685514,-2378.36,0.00024657,2]
[326543949,1715100685525,-500.0,0.00024657,2]
[326543950,1715100685550,-500.0,0.00024657,2]
[326543951,1715100685562,-2583.23,0.00024657,2]
[326543952,1715100685574,-535.43,0.00024657,2]
[326543953,1715100685590,-500.0,0.00024657,2]
[326543954,1715100685609,-500.0,0.00024657,2]
[326543955,1715100685621,-500.0,0.00024657,2]
[326543956,1715100685632,-500.0,0.00024657,2]
[326543957,1715100685645,-500.0,0.00024657,2]
[326543958,1715100685659,-500.0,0.00024657,2]
[326543959,1715100685672,-500.0,0.00024657,2]
[326543960,1715100685683,-500.0,0.00024657,2]
[326543961,1715100685693,-500.0,0.00024657,2]
[326543962,1715100685710,-838.89,0.00024657,2]
[326543963,1715100685734,-500.0,0.00024657,2]
[326543964,1715100685776,-151.0,0.00024657,7]
[326543965,1715100685788,-500.0,0.00024657,2]
[326543966,1715100685799,-151.0,0.00024657,7]
[326543967,1715100685810,-500.0,0.00024657,2]
[326543968,1715100685829,-500.0,0.00024657,2]
[326543969,1715100685840,-1278.02,0.00024657,2]
[326543970,1715100685868,-500.0,0.00024657,2]
[326543971,1715100685878,-1509.73,0.00024657,2]
[326543972,1715100685889,-500.0,0.00024657,2]
[326543973,1715100685901,-500.0,0.00024657,2]
[326543974,1715100685911,-500.0,0.00024657,2]
[326543975,1715100685939,-719.87,0.00024657,2]
[326543976,1715100685949,-500.0,0.00024657,2]
[326543977,1715100685990,-1707.21,0.00024657,2]
[326543978,1715100686000,-500.0,0.00024657,2]
[326543979,1715100686027,-653.81,0.00024657,2]
[326543980,1715100686053,-1480.936398,0.00024657,7]
[326543981,1715100686075,-1480.936398,0.00024657,7]
[326543982,1715100686086,-1480.936398,0.00024657,7]
[326543983,1715100686099,-1480.936398,0.00024657,7]
[326543984,1715100686153,-504.45929292,0.00024657,2]
[326543985,1715100686164,-500.0,0.00024657,2]
[326543986,1715100686176,-500.0,0.00024657,2]
[326543987,1715100686189,-500.0,0.00024657,2]
[326543988,1715100686200,-2002.09,0.00024657,2]
[326543989,1715100686217,-1579.48,0.00024657,2]
[326543990,1715100686248,-500.0,0.00024657,2]
[326543991,1715100686291,-500.0,0.00024657,2]
[326543992,1715100686302,-500.0,0.00024657,2]
[326543993,1715100686332,-1817.99,0.00024657,2]
[326543994,1715100686352,-614.4399929,0.00024657,2]
[326543995,1715100686362,-197.82837082,0.00024657,2]
[326543996,1715100686373,-1480.936398,0.00024657,7]
[326543997,1715100686390,-151.0,0.00024657,7]
[326543998,1715100686408,-838.02,0.00024657,2]
[326543999,1715100686437,-1480.936398,0.00024657,7]
[326544000,1715100686448,-1480.936398,0.00024657,7]
[326544001,1715100686461,-151.0,0.00024657,7]
[326544002,1715100686500,-151.0,0.00024657,7]
[326544003,1715100686513,-1480.936405,0.00024657,7]
[326544004,1715100686533,-151.0,0.00024657,7]
[326544005,1715100686566,-500.0,0.00024657,2]
[326544006,1715100686577,-3274.04,0.00024657,2]
[326544007,1715100686637,-500.0,0.00024657,2]
[326544008,1715100686674,-500.0,0.00024657,2]